[Event "Olomouc Chess Summer-IM 2022"]
[Site "Olomouc"]
[Date "2022.08.18"]
[Round "7.14"]
[White "Camarena Jimenez, Rufino"]
[Black "Nemec, Jachym"]
[Result "0-1"]
[ECO "D17"]
[WhiteElo "2298"]
[BlackElo "2357"]
[Annotator "TA"]
[PlyCount "82"]
[EventDate "2022.08.10"]
[EventCountry "CZE"]
[SourceTitle "playchess.com"]
[Source "ChessBase"]
[SourceQuality "1"]
[TimeControl "40/5400+30:1800+30"]

{[%evp 15,82,17,34,20,18,13,18,16,21,6,25,25,25,15,24,23,26,24,46,44,65,58,54,0,54,41,51,18,18,16,3,25,20,19,12,15,14,4,2,0,30,20,28,0,20,18,23,-12,0,0,13,0,0,0,0,0,0,-108,-85,-67,-68,-706,-667,-938,-930,-1124,-1034,-1682,-1440]} 1. d4 {[%emt 0:01:20]} d5 {[%emt 0:00:08]} 2. c4 {[%emt 0:00:37]} c6 {[%emt 0:00:05]} 3. Nf3 {[%emt 0:00:28]} Nf6 {[%emt 0:00:04]} 4. Nc3 {[%emt 0:00:09]} dxc4 {[%emt 0:00:04]} 5. a4 {[%emt 0:00:20]} Bf5 {[%emt 0:00:11]} 6. Ne5 {[%emt 0:00:18]} Nbd7 {[%emt 0:00:05]} 7. Nxc4 {[%emt 0:00:15]} Nb6 {[%emt 0:00:06]} 8. Ne5 {[%emt 0:00:52]} a5 {[%emt 0:00:20]} 9. f3 {[%emt 0:00:34] D17: Slav Defence: 5 a4 Bf5: Lines with 6 Nh4 and 6 Ne5.} Nfd7 {[%emt 0:00:07]} 10. Nxd7 {[%emt 0:00:10]} Nxd7 {[%emt 0:00:15] 10...Bxd7 is more fashionable.} 11. e4 {[%emt 0:00:12] The position is equal.} Bg6 {[%emt 0:00:03]} 12. Be2 {[%emt 0:01:02]} e6 {[%emt 0:00:08] 12...Qb6 is vanishing.} 13. Be3 {[%emt 0:03:32]} Bb4 {[%emt 0:00:50]} 14. O-O {[%emt 0:02:20]} O-O {[%emt 0:00:03]} 15. Qb3 {[%emt 0:03:08]} Qb6 {[%emt 0:00:28]} 16. Bf2 {[%emt 0:06:21] [#]} Qa7 $146 {[%emt 0:08:29]} ({Predecessor:} 16... e5 17. dxe5 Qc7 18. f4 Bxc3 19. bxc3 Bxe4 20. Rad1 Bd5 21. c4 Be6 22. Rd6 b5 23. axb5 cxb5 24. Qxb5 {½-½ (65) Ding,L (2801)-Bu,X (2705) Ningbo 2019}) 17. Rad1 {[%emt 0:03:31]} Rac8 {[%emt 0:02:20]} 18. Na2 {[%emt 0:15:47]} Bd6 {[%emt 0:04:58]} 19. Nc3 {[%emt 0:06:17]} (19. g3 $14) 19... Rfe8 {[%emt 0:01:56]} ({Black should try} 19... Bb4 $11) 20. g3 $14 {[%emt 0:01:47]} Bb4 {[%emt 0:09:53]} 21. d5 {[%emt 0:11:29]} Bc5 {[%emt 0:18:29]} 22. dxe6 {[%emt 0:05:58]} Bxf2+ {[%emt 0:00:06][%mdl 64] [#] Remove Defender} 23. Rxf2 {[%emt 0:00:04]} Nc5 {[%emt 0:00:04]} 24. exf7+ {[%emt 0:01:06]} Bxf7 {[%emt 0:00:05]} 25. Qa3 {[%emt 0:00:09]} Rcd8 {[%emt 0:03:13]} 26. Kg2 {[%emt 0:02:07]} Qb6 {[%emt 0:13:19]} 27. Bf1 {[%emt 0:09:54]} Rxd1 {[%emt 0:11:56]} 28. Nxd1 {[%emt 0:00:06]} Qb4 {[%emt 0:01:11] Inhibits Rd2.} 29. Qe3 {[%emt 0:01:56]} Nxa4 {[%emt 0:01:55]} 30. Rd2 {[%emt 0:04:19][%cal Bf2d2,Bd2d7,Bd7c7][%mdl 32] Against Rd8} b5 {[%emt 0:00:48]} 31. Qf4 {[%emt 0:03:45]} Nc5 {[%emt 0:02:19]} (31... c5 {is interesting.} 32. Rd7 Rf8 33. Qd6 c4) 32. Nf2 {[%emt 0:04:06]} a4 {[%emt 0:02:32]} 33. Qe3 {[%emt 0:01:15]} Nb3 {[%emt 0:02:32]} 34. Rd7 $40 {[%emt 0:01:07][%mdl 128] White is up to no good.} Be6 {[%emt 0:01:41]} 35. Rc7 {[%emt 0:00:40]} Qd4 {[%emt 0:06:38] Inhibits Qb6.} 36. Qg5 {[%emt 0:02:11]} (36. Qxd4 $11 {was the only way to keep the balance.} Nxd4 37. Nd3) 36... Qxb2 $17 {[%emt 0:02:57]} 37. e5 {[%emt 0:05:20][%csl Gc7][%cal Rg5g7]} Bf7 {[%emt 0:00:07] aiming for ...Nd4.} (37... g6 $2 38. Qh6 (38. Qf6 Qxe5 39. Ng4 Qxf6 $18) 38... Qxe5 39. Qxh7+ Kf8 40. Bd3 Qxc7 41. Qxc7 $18) 38. f4 $2 {[%emt 0:00:24][%mdl 8192] White does not recover from this.} (38. e6 $15 Bxe6 39. Bd3) 38... Nc5 $19 {[%emt 0:01:07] White must now prevent ...Ne4. Active counter play! Black is clearly winning.} (38... Bg6 {[#]} 39. Bd3 $1 {[%mdl 512]} Qa3 40. Bxg6 hxg6 41. Qxg6) 39. Qg4 {[%emt 0:04:21]} a3 {[%emt 0:02:18][%cal Ba4a3,Ba3a2][%mdl 32]} 40. Kg1 {[%emt 0:00:37]} a2 {[%emt 0:00:49]} 41. Qf5 {[%emt 0:18:09]} Rf8 {[%emt 0:13:04] Weighted Error Value: White=0.64/Black=0.08 (flawless)} 0-1

[Event "Olomouc Chess Summer-IM 2022"]
[Site "Olomouc"]
[Date "2022.08.18"]
[Round "7.15"]
[White "Biolek, Richard Jr."]
[Black "Saypuri Srithan"]
[Result "1/2-1/2"]
[ECO "A00"]
[WhiteElo "2437"]
[BlackElo "1923"]
[Annotator "TA"]
[PlyCount "70"]
[EventDate "2022.08.10"]
[EventCountry "CZE"]
[SourceTitle "playchess.com"]
[Source "ChessBase"]
[SourceQuality "1"]
[TimeControl "40/5400+30:1800+30"]

{[%evp 9,70,-5,-12,-9,10,0,0,-14,0,-26,0,-16,22,27,25,22,22,17,21,14,19,2,18,11,0,0,28,-9,14,0,11,-24,-3,-10,9,8,12,24,19,19,19,25,30,0,0,0,29,0,0,0,0,0,0,0,0,0,0,0,0,0,0,0,0]} 1. g3 {[%emt 0:00:04]} Nf6 {[%emt 0:03:22]} 2. Bg2 {[%emt 0:00:16]} g6 {[%emt 0:00:14]} 3. Nf3 {[%emt 0:00:08]} Bg7 {[%emt 0:00:04]} 4. b3 {[%emt 0:00:17]} Ne4 {[%emt 0:05:34]} 5. c3 {[%emt 0:03:18]} d5 {[%emt 0:08:17]} 6. Bb2 {[%emt 0:02:03] A05: Réti Opening: 1 Nf3 Nf6.} c6 {[%emt 0:09:20]} 7. d3 {[%emt 0:00:45]} Nd6 {[%emt 0:00:04]} 8. O-O {[%emt 0:00:54]} O-O {[%emt 0:00:45]} 9. Nbd2 {[%emt 0:01:44] [#]} Re8 $146 {[%emt 0:05:12]} ({Predecessor:} 9... f5 10. Qc2 e5 11. c4 d4 12. c5 Nf7 13. b4 Be6 14. Nc4 Na6 15. a3 g5 {1-0 (39) Dyba,P-Nalepa,B USA 1992}) 10. e4 {[%emt 0:01:08]} Bg4 {[%emt 0:03:30]} 11. h3 {[%emt 0:00:56]} Bxf3 {[%emt 0:02:29]} 12. Qxf3 {[%emt 0:00:46]} dxe4 {[%emt 0:00:15]} 13. dxe4 {[%emt 0:06:35]} Nd7 {[%emt 0:00:25]} 14. Rfd1 {[%emt 0:03:19]} Qb6 {[%emt 0:05:14]} 15. Qe2 {[%emt 0:07:22]} Rad8 {[%emt 0:01:18]} 16. a4 {[%emt 0:09:40]} a5 {[%emt 0:07:51]} 17. Rab1 {[%emt 0:06:14]} Nc5 {[%emt 0:08:33]} 18. Ba1 {[%emt 0:04:15]} Qc7 {[%emt 0:11:46]} 19. Qe3 {[%emt 0:07:52]} b6 {[%emt 0:01:32]} 20. Bf1 {[%emt 0:03:08]} (20. b4 $5 {[%cal Rb4c5]} Ne6 21. bxa5 bxa5 22. f4 $11) 20... e5 {[%emt 0:04:09]} 21. Nc4 {[%emt 0:11:47]} Nxc4 {[%emt 0:06:54]} (21... Ndxe4 $2 22. Rxd8 Qxd8 23. b4 $16) (21... Bf8 {is interesting.} 22. Nxd6 Rxd6 23. Rxd6 Qxd6 24. Bc4 Rd8) 22. Bxc4 {[%emt 0:00:17]} Rxd1+ {[%emt 0:00:52]} 23. Rxd1 {[%emt 0:00:02]} Rd8 {[%emt 0:00:11]} 24. Rxd8+ {[%emt 0:01:46]} Qxd8 {[%emt 0:00:04]} 25. Qf3 {[%emt 0:00:24] Against Qd1+} Qf6 {[%emt 0:00:31]} 26. Kg2 {[%emt 0:05:34]} Qxf3+ {[%emt 0:00:22]} 27. Kxf3 $11 {[%emt 0:00:02][%mdl 4096] Endgame KBB-KBN} Bh6 {[%emt 0:02:04]} 28. Bb2 {[%emt 0:00:06]} Kg7 {[%emt 0:02:43] The position is equal.} 29. h4 {[%emt 0:13:28]} Kf6 {[%emt 0:02:25]} 30. g4 {[%emt 0:00:19][%cal Bg3g4,Bg4g5][%mdl 32] [#] Black must now prevent g5+.} Bf4 {[%emt 0:00:08]} 31. g5+ {[%emt 0:02:50]} Kg7 {[%emt 0:00:06]} 32. Ba3 {[%emt 0:01:41]} Bd2 {[%emt 0:01:05]} 33. Bxc5 {[%emt 0:02:23]} bxc5 {[%emt 0:00:03]} 34. Bb5 {[%emt 0:01:56]} Bxc3 {[%emt 0:01:39]} 35. Bxc6 {[%emt 0:00:01]} f6 {[%emt 0:00:09] An even fight not without its subleties.  Weighted Error Value: White=0.09 (flawless) /Black=0.07 (flawless)} 1/2-1/2

[Event "Olomouc Chess Summer-IM 2022"]
[Site "Olomouc"]
[Date "2022.08.19"]
[Round "8.6"]
[White "Jurek, Josef"]
[Black "Lalic, Bogdan"]
[Result "1/2-1/2"]
[ECO "D37"]
[WhiteElo "2212"]
[BlackElo "2415"]
[Annotator "TA"]
[PlyCount "34"]
[EventDate "2022.08.10"]
[EventCountry "CZE"]
[SourceTitle "playchess.com"]
[Source "ChessBase"]
[SourceQuality "1"]
[TimeControl "40/5400+30:1800+30"]

{[%evp 17,20,13,16,19,12]} 1. d4 {[%emt 0:00:04]} Nf6 {[%emt 0:03:24]} 2. Nf3 {[%emt 0:00:17]} d5 {[%emt 0:00:15]} 3. c4 {[%emt 0:00:19]} e6 {[%emt 0:00:14]} 4. Nc3 {[%emt 0:00:20]} dxc4 {[%emt 0:00:17]} 5. e4 {[%emt 0:00:17]} Bb4 {[%emt 0:00:13]} 6. Bg5 {[%emt 0:00:25]} h6 {[%emt 0:00:24]} 7. Bxf6 {[%emt 0:00:35]} Qxf6 {[%emt 0:00:08]} 8. Bxc4 {[%emt 0:00:45]} c5 {[%emt 0:00:11]} 9. O-O {[%emt 0:04:38]} O-O {[%emt 0:00:08]} 10. a3 {[%emt 0:03:54] D39: Queen's Gambit Declined: Ragozin Defence with 5 Bg5 dxc4.} Bxc3 {[%emt 0:00:29] [#] Not much happened in this game.} {Predecessor:} 11. bxc3 $146 Nc6 12. e5 Qf4 13. g3 Qg4 14. Re1 b6 15. Bd3 f5 16. exf6 Rxf6 17. Be4 Bb7 {1-0 (44) Bogdanovich,S (2464)-Pavlov,S (2524) Odessa 2010} 1/2-1/2

[Event "Olomouc Chess Summer-IM 2022"]
[Site "Olomouc"]
[Date "2022.08.19"]
[Round "8.7"]
[White "Poschadel, Andreas Gregor"]
[Black "Nagy, Ladislav"]
[Result "0-1"]
[ECO "B47"]
[WhiteElo "2073"]
[BlackElo "2194"]
[Annotator "TA"]
[PlyCount "90"]
[EventDate "2022.08.10"]
[EventCountry "CZE"]
[SourceTitle "playchess.com"]
[Source "ChessBase"]
[SourceQuality "1"]
[TimeControl "40/5400+30:1800+30"]

{[%evp 17,90,33,27,20,35,0,16,-20,0,0,37,25,16,-20,-3,-20,6,0,24,-31,-53,-46,-20,-49,-51,-37,-34,-51,-47,-83,-91,-126,-125,-125,-85,-93,-81,-99,-103,-133,-101,-202,-197,-292,-307,-272,-139,-451,-444,-535,-484,-731,-753,-1295,-1275,-29974,-29976,-29976,-29977,-29976,-29954,-6668,-6315,-29980,-29981,-29981,-29982,-29982,-29983,-29985,-29986,-29987,-29988,-29988,-29989]} 1. e4 {[%emt 0:00:05]} c5 {[%emt 0:00:07]} 2. Nf3 {[%emt 0:00:08]} Nc6 {[%emt 0:00:09]} 3. d4 {[%emt 0:00:09]} cxd4 {[%emt 0:00:08]} 4. Nxd4 {[%emt 0:00:10]} e6 {[%emt 0:00:16]} 5. Nc3 {[%emt 0:00:40]} Qc7 {[%emt 0:00:15]} 6. g3 {[%emt 0:00:35]} d6 {[%emt 0:07:23]} 7. Bg2 {[%emt 0:00:28]} Bd7 {[%emt 0:04:40]} 8. O-O {[%emt 0:00:45]} a6 {[%emt 0:02:19]} 9. Nxc6 {[%emt 0:10:44]} Bxc6 {[%emt 0:02:19]} 10. Be3 {[%emt 0:01:15] B47: Sicilian: Taimanov: 5 Nc3 Qc7 6 f4, 6 g3 and 6 Be2.} Nf6 {[%emt 0:02:28]} 11. f4 {[%emt 0:07:37]} Be7 {[%emt 0:09:17]} 12. a3 {[%emt 0:07:45] [#] The position is equal.} Rd8 $146 {[%emt 0:07:18]} ({Predecessor:} 12... Rc8 13. Rc1 b5 14. Qe2 O-O 15. g4 Qb7 16. Bd2 d5 17. e5 d4 18. Bxc6 Qxc6 19. exf6 Bc5 20. Ne4 d3+ 21. Nxc5 dxe2 22. Rf2 Qxc5 {0-1 (22) Arsenault,Y (1537)-Danilov,A (1782) Gatineau 2011}) 13. f5 e5 {[%emt 0:21:00]} 14. Bf3 {[%emt 0:24:44]} b5 {[%emt 0:05:18]} 15. Qd3 {[%emt 0:05:30]} h6 {[%emt 0:06:19]} 16. Rad1 {[%emt 0:03:46]} Qb7 {[%emt 0:00:42]} 17. Rfe1 {[%emt 0:08:38]} Rd7 {[%emt 0:01:13]} 18. h3 {[%emt 0:11:48]} ({Better is} 18. g4 $11) 18... O-O {[%emt 0:02:59]} 19. Bf2 {[%emt 0:02:41]} Rfd8 {[%emt 0:01:31]} 20. Nd5 {[%emt 0:04:19]} Bxd5 {[%emt 0:01:53]} 21. exd5 {[%emt 0:00:03]} Rc8 {[%emt 0:02:01]} 22. c3 {[%emt 0:03:01]} Bd8 {[%emt 0:00:41]} 23. Kg2 {[%emt 0:01:54]} Bb6 {[%emt 0:00:52]} 24. Be3 {[%emt 0:02:11] [#]} Bxe3 $1 {[%emt 0:01:12]} 25. Rxe3 {[%emt 0:00:04]} Qc7 {[%emt 0:03:15]} 26. Qd2 {[%emt 0:03:47]} Qc5 {[%emt 0:01:32]} 27. Be4 {[%emt 0:00:32]} a5 {[%emt 0:03:32][%cal Ob5b4,Ba6a5,Ba5b4][%mdl 32]} 28. Kf3 {[%emt 0:00:35]} Rb7 {[%emt 0:01:22]} 29. g4 {[%emt 0:00:32]} (29. Bc2 $17) 29... b4 $19 {[%emt 0:02:40]} 30. cxb4 {[%emt 0:00:30]} (30. axb4 $142 axb4 31. Rc1) 30... axb4 {[%emt 0:00:09]} 31. a4 {[%emt 0:00:20]} Qa5 {[%emt 0:03:43]} (31... Rbc7 $19 {And now ...Qa7 would win.} 32. b3 Qa5) 32. Ra1 $2 {[%emt 0:00:41][%mdl 8192] [#] This move loses the game for White.} (32. Bc2 $17) 32... Rbc7 {[%emt 0:01:14][%cal Bb7c7,Bc7c4,Bc4d4][%mdl 32]} 33. Qd3 {[%emt 0:00:31]} Rc4 {[%emt 0:02:15]} 34. h4 {[%emt 0:00:27]} (34. Rae1 $142 b3 35. Qxb3) 34... Rd4 {[%emt 0:03:03]} 35. Qb3 {[%emt 0:00:34]} Rcc4 {[%emt 0:00:50]} 36. Rae1 {[%emt 0:00:27]} Nxe4 {[%emt 0:00:46]} 37. Rxe4 {[%emt 0:00:16]} Qxd5 {[%emt 0:00:17]} 38. Qxc4 {[%emt 0:00:46]} Qxc4 {[%emt 0:00:30]} 39. Rxd4 {[%emt 0:00:15]} Qxd4 {[%emt 0:00:17][%mdl 4096] Endgame KQ-KR} 40. b3 {[%emt 0:00:17]} Qd5+ {[%emt 0:00:15] Black mates.} 41. Kf2 {[%emt 0:30:08]} Qxb3 {[%emt 0:30:12]} 42. a5 {[%emt 0:00:03]} Qa2+ {[%emt 0:00:09]} 43. Re2 {[%emt 0:00:09]} Qxa5 {[%emt 0:00:03]} 44. Kf3 {[%emt 0:00:07]} b3 {[%emt 0:00:12]} 45. Ke4 {[%emt 0:00:09]} Qb4+ {[%emt 0:00:09] Weighted Error Value: White=0.84/Black=0.14 (very precise)} 0-1

[Event "Olomouc Chess Summer-IM 2022"]
[Site "Olomouc"]
[Date "2022.08.19"]
[Round "8.8"]
[White "Stinka, Jakub"]
[Black "Kusa, Jakub"]
[Result "1/2-1/2"]
[ECO "D31"]
[WhiteElo "2329"]
[BlackElo "2373"]
[Annotator "TA"]
[PlyCount "70"]
[EventDate "2022.08.10"]
[EventCountry "CZE"]
[SourceTitle "playchess.com"]
[Source "ChessBase"]
[SourceQuality "1"]
[TimeControl "40/5400+30:1800+30"]

{[%evp 9,70,22,35,25,12,30,37,25,31,13,14,33,22,20,38,41,45,43,57,15,12,0,29,31,72,70,70,66,93,20,30,15,19,38,45,0,119,15,14,0,0,0,0,0,0,0,0,-64,-60,-60,-62,-56,-35,-27,-19,-19,0,0,0,0,0,0,0]} 1. d4 {[%emt 0:00:06]} d5 {[%emt 0:00:09]} 2. c4 {[%emt 0:00:16]} e6 {[%emt 0:00:09][%cal Be7e6,Be6d5][%mdl 32]} 3. Nc3 {[%emt 0:00:14]} a6 {[%emt 0:00:12]} 4. cxd5 {[%emt 0:00:36]} exd5 {[%emt 0:00:08]} 5. Nf3 {[%emt 0:00:25]} c6 {[%emt 0:00:36]} 6. e4 {[%emt 0:03:01] D31: Queen's Gambit Declined: Semi-Slav without ...Nf6 (+ Marshall Gambit and Noteboom) and Exchange Variation lines without ...Nf6.} dxe4 {[%emt 0:00:25]} 7. Ng5 {[%emt 0:00:10][%cal Og5f7]} Be7 {[%emt 0:00:54] [#]} 8. Bc4 $1 {[%emt 0:01:10] White is slightly better.} Nh6 {[%emt 0:00:48]} 9. Ngxe4 {[%emt 0:00:49] Black must now prevent Qh5.} Nf5 $1 {[%emt 0:00:31]} 10. d5 {[%emt 0:01:42]} O-O {[%emt 0:01:29]} 11. O-O {[%emt 0:02:56]} cxd5 {[%emt 0:08:26]} 12. Nxd5 {[%emt 0:03:24]} b5 {[%emt 0:06:40]} 13. Bb3 {[%emt 0:06:36] [#]} Nc6 $146 {[%emt 0:04:14]} ({Predecessor:} 13... Be6 14. Bf4 Ra7 15. Re1 Bxd5 16. Qxd5 Nd4 17. Qh5 Nxb3 18. axb3 Nc6 19. Re3 g6 {0-1 (44) Dardha,D (2487)-Warmerdam,M (2506) Bassano del Grappa 2020}) 14. Bf4 {[%emt 0:02:25] Bc7 is the strong threat.} Be6 {[%emt 0:04:23]} 15. Rc1 {[%emt 0:11:08]} Rc8 16. Nxe7+ {[%emt 0:20:14]} Nfxe7 {[%emt 0:12:50]} 17. Nd6 $36 {[%emt 0:06:59][%mdl 2048] Strongly threatening Bxe6. White has good play.} Bxb3 {[%emt 0:02:15]} 18. axb3 {[%emt 0:07:02]} Ra8 {[%emt 0:01:10][%cal Bc8a8,Ba8a7,Ba7c7][%mdl 32]} 19. Qf3 {[%emt 0:05:03]} (19. Qg4 $16) 19... Nd4 $11 {[%emt 0:04:59]} 20. Qe4 {[%emt 0:01:37]} Ne6 {[%emt 0:02:19]} 21. Bg3 {[%emt 0:04:15]} Ra7 {[%emt 0:04:20]} 22. Rfe1 {[%emt 0:03:19]} (22. Rfd1 $5 {[%cal Rd6f7]}) 22... Qd7 {[%emt 0:09:50]} (22... Qb6 $1 $11) 23. Red1 {[%emt 0:04:45] White is much more active. The black rooks are badly placed.} (23. h3 $16) 23... Rc7 {[%emt 0:16:38]} 24. Nc4 {[%emt 0:05:04]} Qc6 {[%emt 0:00:41]} 25. Qe1 {[%emt 0:00:47]} Rd7 $1 {[%emt 0:01:52] aiming for ...Rxd1.} (25... bxc4 $2 26. Rxc4 Qxc4 27. bxc4 Rxc4 28. h3 $18) 26. Nd6 {[%emt 0:00:32]} Qa8 {[%emt 0:05:41]} 27. Nc8 {[%emt 0:02:42]} Nd5 {[%emt 0:00:59]} 28. Nd6 {[%emt 0:03:43]} (28. Rxd5 $1 $11 Qxd5 29. Nb6) 28... Ndf4 $15 {[%emt 0:02:39]} 29. Bxf4 {[%emt 0:00:57]} Nxf4 {[%emt 0:00:26][%csl Gf4][%cal Ra8g2]} 30. Qe4 {[%emt 0:00:36] [#]} Rxd6 $1 {[%emt 0:03:06]} 31. Qxf4 {[%emt 0:00:08]} Rxd1+ {[%emt 0:00:07]} 32. Rxd1 {[%emt 0:00:02] The position is equal.} Rd8 {[%emt 0:00:26]} 33. Rxd8+ {[%emt 0:01:13]} Qxd8 {[%emt 0:00:12][%cal Rd8d1]} 34. h3 {[%emt 0:00:26]} g6 {[%emt 0:00:49]} 35. b4 {[%emt 0:00:38]} Qe7 {[%emt 0:01:53] Weighted Error Value: White=0.17 (very precise) /Black=0.13 (very precise)} 1/2-1/2

[Event "Olomouc Chess Summer-IM 2022"]
[Site "Olomouc"]
[Date "2022.08.19"]
[Round "8.9"]
[White "Kukelko, Alexey"]
[Black "Nytra, Ondrej"]
[Result "1/2-1/2"]
[ECO "C98"]
[WhiteElo "2260"]
[BlackElo "2202"]
[Annotator "NA RC"]
[PlyCount "50"]
[EventDate "2022.08.10"]
[EventCountry "CZE"]
[SourceTitle "playchess.com"]
[Source "ChessBase"]
[SourceQuality "1"]
[TimeControl "40/5400+30:1800+30"]

1. e4 e5 2. Nf3 Nc6 3. Bb5 a6 4. Ba4 Nf6 5. O-O Be7 6. Re1 b5 7. Bb3 O-O 8. h3 d6 9. c3 Na5 10. Bc2 c5 11. d4 Qc7 12. Nbd2 Nc6 13. d5 Nd8 14. a4 Rb8 15. axb5 axb5 16. b4 Nb7 17. Bd3 Bd7 18. Nf1 Ra8 19. Bb2 c4 20. Bc2 g6 21. Qd2 Nh5 22. Ne3 Kh8 23. Rxa8 Rxa8 24. Ra1 Rxa1+ 25. Bxa1 Nd8 1/2-1/2

[Event "Olomouc Chess Summer-IM 2022"]
[Site "Olomouc"]
[Date "2022.08.19"]
[Round "8.10"]
[White "Jasny, Stanislav"]
[Black "Gimenez Menchon, Cesar"]
[Result "0-1"]
[ECO "C41"]
[WhiteElo "2248"]
[BlackElo "2205"]
[Annotator "TA"]
[PlyCount "70"]
[EventDate "2022.08.10"]
[EventCountry "CZE"]
[SourceTitle "playchess.com"]
[Source "ChessBase"]
[SourceQuality "1"]
[TimeControl "40/5400+30:1800+30"]

{[%evp 20,70,20,10,9,21,15,-63,-61,-66,-30,-67,0,-56,-64,-49,-47,-39,-47,-36,-29,-24,0,-20,86,0,12,31,72,62,97,100,128,-21,0,-88,-117,-103,-99,-114,-33,-124,-124,-321,-300,-689,-661,-1136,-475,-458,-453,-443,-437]} 1. d4 {[%emt 0:00:05]} d6 {[%emt 0:00:30]} 2. e4 {[%emt 0:00:34]} Nf6 {[%emt 0:00:05]} 3. Nc3 {[%emt 0:00:32]} e5 {[%emt 0:00:06]} 4. Nf3 {[%emt 0:00:36]} Nbd7 {[%emt 0:00:05]} 5. Bc4 {[%emt 0:00:59]} Be7 {[%emt 0:00:09]} 6. O-O {[%emt 0:00:42]} O-O {[%emt 0:00:11]} 7. Re1 {[%emt 0:00:41]} c6 {[%emt 0:00:08]} 8. a4 {[%emt 0:00:27]} a5 {[%emt 0:00:18]} 9. b3 {[%emt 0:02:48]} exd4 {[%emt 0:01:13]} 10. Nxd4 {[%emt 0:01:36]} Ne5 {[%emt 0:00:22]} 11. Bf1 {[%emt 0:00:41]} Re8 {[%emt 0:00:24] C41: Philidor Defence.} 12. h3 {[%emt 0:04:46]} d5 {[%emt 0:11:23]} 13. f4 {[%emt 0:04:38]} (13. exd5 $11 Bb4 14. Bd2) 13... Bb4 $15 {[%emt 0:06:53] Black is slightly better.} 14. Bb2 {[%emt 0:08:47]} Ng6 {[%emt 0:08:00][%csl LRe4,LRf4][%cal Rd5e4]} ({Of course not} 14... Bxc3 15. Bxc3 Ng6 16. exd5 $11) 15. e5 {[%emt 0:00:37] [#]} Qb6 $146 {[%emt 0:01:34]} (15... Bxc3 $15 16. Bxc3 Ne4) ({Predecessor:} 15... Bxc3 16. Bxc3 Ne4 17. Bd2 Qh4 18. Rxe4 dxe4 19. Ne2 f6 20. Be1 Qh5 21. exf6 gxf6 {0-1 (78) Pasztor,B (2140)-Egresi,M (2341) Balatonalmadi 2019}) 16. Kh2 {[%emt 0:13:12]} (16. g3 $1 $11) 16... Bxc3 {[%emt 0:09:38]} (16... Nxf4 $2 17. exf6 Rxe1 18. Qxe1 $18) 17. Bxc3 {[%emt 0:00:10]} Ne4 18. Rxe4 {[%emt 0:10:02]} dxe4 {[%emt 0:00:19]} 19. Qc1 {[%emt 0:00:07]} Rd8 {[%emt 0:02:57]} 20. Qe3 {[%emt 0:02:28]} Qc5 {[%emt 0:09:38][%cal Og6f4] White must now prevent ...Nxf4!} (20... Ne7 $5 {[%cal Re7d5]} 21. Qxe4 c5 $11) 21. Bb2 {[%emt 0:03:04] [#]} Ne7 {[%emt 0:07:18]} (21... Nxf4 $1 $11 {keeps the balance.} 22. Qxf4 Rxd4) 22. c4 {[%emt 0:10:47]} ({White should try} 22. Qxe4 $16 Qd5 23. Qe1) 22... g6 $11 {[%emt 0:05:05][%cal Bg7g6,Bg6g5,Bg5f4][%mdl 32]} 23. g4 {[%emt 0:01:19]} h5 {[%emt 0:04:51]} 24. Be2 {[%emt 0:03:06]} hxg4 {[%emt 0:11:36]} 25. hxg4 {[%emt 0:02:37]} g5 {[%emt 0:00:04] [#]} 26. Qxe4 {[%emt 0:01:58]} ({White must play} 26. f5 $1 $16 Qxe5+ 27. Kg2 Bxf5 28. Qxg5+ Ng6 29. gxf5) 26... Ng6 $36 {[%emt 0:02:35][%mdl 2048] White is under pressure.} (26... gxf4 $5 {[%cal Re7g6]} 27. Rf1 Ng6 28. Rxf4 Nxf4 29. Qxf4 Be6 $17) 27. Rf1 {[%emt 0:07:03]} (27. f5 $11 Qxe5+ 28. Qxe5 Nxe5 29. Kg3) 27... gxf4 $17 {[%emt 0:06:58]} 28. Nf5 {[%emt 0:08:04] Against Qe7} Be6 {[%emt 0:06:18]} 29. Bc3 {[%emt 0:04:09] Prevents Rd2.} b6 {[%emt 0:02:38]} (29... Qb6 $17 30. Rxf4 Nxf4 31. Qxf4 Kf8) 30. Bd3 {[%emt 0:05:31]} (30. Rxf4 $15 Nxf4 31. Qxf4) 30... Rd7 {[%emt 0:02:56]} 31. Rf3 $2 {[%emt 0:00:37] Loses the game.} (31. Qf3 $17 {might work better.}) 31... Rad8 $19 {[%emt 0:00:33][%cal Od7d3] Threatens to win with ...Rxd3!} 32. Nd6 $2 {[%emt 0:00:11]} (32. Qe2) 32... Bxg4 {[%emt 0:00:32] Strongly threatening ...Rxd6. Black is clearly winning.} 33. Rxf4 {[%emt 0:00:43]} Rxd6 {[%emt 0:00:21]} (33... f5 $142 34. Qd4 Nxf4 35. Qxf4 Rh7+ 36. Kg2 Bh3+ 37. Kf3 Qg1 38. Qg3+ Bg4+ 39. Kf4 Qxg3+ 40. Kxg3 Rh3+ 41. Kf4 Rxd3) 34. exd6 {[%emt 0:01:00]} Qxd6 {[%emt 0:00:10]} 35. Bf6 {[%emt 0:01:34]} Qxf4+ {[%emt 0:00:45] Weighted Error Value: White=0.75/Black=0.37} 0-1